bitfinex/quotes_ETHUSD_20260107
["timestamp","ask_amount","ask_price","bid_price","bid_amount"]
[1767802078822,1.13367738,3170.7,3169.3,1.14428962]
[1767802078992,2.19317858,3170.6,3169.4,0.42996601]
[1767802079313,1.95967738,3170.5,3169.4,0.42996601]
[1767802079820,1.13367738,3170.4,3169.4,0.42996601]
[1767802079998,1.13367738,3170.4,3169.3,1.14428962]
[1767802080196,1.13367738,3170.4,3169.0,0.002]
[1767802080808,1.0561922,3170.2,3169.0,0.002]
[1767802081011,1.0561922,3170.2,3169.0,1.10166382]
[1767802081232,1.37105303,3170.2,3169.1,0.4257333]
[1767802081528,1.37105303,3170.2,3169.0,1.10166382]
[1767802081696,1.08881528,3170.1,3169.0,1.10166382]
[1767802081898,0.826,3170.0,3169.0,1.10166382]
[1767802082516,0.826,3170.0,3169.3,0.002]
[1767802082717,3.15467364,3169.9,3169.0,1.10166382]
[1767802082918,3.15467364,3169.9,3169.0,1.52740585]
[1767802083193,3.15447828,3170.1,3169.1,1.06313914]
[1767802084296,6.30895656,3170.1,3169.1,1.06313914]
[1767802085005,3.15447828,3170.1,3169.1,4.21859469]
[1767802085217,6.30895656,3170.1,3169.2,0.42205947]
[1767802085420,3.15447828,3170.1,3169.2,0.42205947]
[1767802085736,1.08881528,3170.0,3169.0,0.002]
[1767802086610,1.08881528,3170.0,3168.6,3.15792881]
[1767802086611,1.08881528,3170.0,3168.6,0.002]
[1767802086814,1.08881528,3169.8,3168.6,3.1579432]
[1767802087006,1.08881528,3169.6,3168.7,0.39799432]
[1767802087203,3.15454734,3170.1,3168.8,1.06313914]
[1767802087404,7.13509468,3170.1,3168.8,1.06313914]
[1767802087700,1.08881528,3170.0,3168.8,1.06313914]
[1767802088922,0.826,3170.1,3169.0,1.06313914]
[1767802089131,0.826,3170.1,3169.1,1.80058688]
[1767802089316,7.39736652,3170.3,3169.1,1.80058688]
[1767802089516,0.826,3170.2,3169.1,1.80058688]
[1767802089721,1.08881528,3171.1,3169.2,1.06313914]
[1767802089892,1.08881528,3171.1,3169.4,1.06313914]
[1767802090925,7.3959739,3171.0,3169.6,1.06313914]
[1767802091229,7.3959739,3171.0,3169.8,1.06313914]
[1767802092229,1.08881528,3171.0,3169.8,1.06313914]
[1767802092927,1.08881528,3170.8,3169.8,6.30954634]
[1767802093226,1.08881528,3170.8,3169.9,0.71305463]
[1767802094429,9.5e-07,3170.7,3170.3,1.06313914]
[1767802094615,4.08310211,3171.5,3170.3,1.06313914]
[1767802094999,7.23626733,3171.5,3170.3,1.06313914]
[1767802095200,1.08881528,3171.4,3170.4,3.34259003]
[1767802096134,3.15301377,3171.6,3170.4,7.55990529]
[1767802096433,1.08881528,3171.8,3170.5,1.06313914]
[1767802096434,3.1529554,3171.7,3170.5,1.06313914]
[1767802097110,4.24163687,3171.8,3170.6,6.30795432]
[1767802097435,4.24163687,3171.8,3170.7,0.73710935]
[1767802098003,4.24163687,3171.8,3170.7,1.80024849]
[1767802098201,1.08881528,3172.2,3170.8,1.06313914]
[1767802098406,1.91581528,3172.6,3170.8,1.06313914]
[1767802098627,7.39299178,3172.5,3170.8,1.06313914]
[1767802098834,1.08881528,3172.4,3171.0,1.06313914]
[1767802099606,3.15228698,3172.3,3171.1,3.15347986]
[1767802099904,1.08881528,3172.2,3171.1,3.15347986]
[1767802101315,1.08881528,3172.2,3171.1,7.37009886]
[1767802101503,3.15223326,3172.4,3171.2,1.80014903]
[1767802101705,5.06782495,3172.6,3171.2,1.80014903]
[1767802101706,4.24184132,3172.6,3171.3,7.3697011]
[1767802102038,4.24184132,3172.6,3171.4,1.06313914]
[1767802102039,1.08981528,3172.6,3171.4,1.06313914]
[1767802102223,7.39380771,3172.6,3171.5,1.80010925]
[1767802102532,1.08881528,3172.5,3171.5,1.80010925]
[1767802102733,1.08881528,3172.5,3171.6,0.18001093]
[1767802103315,1.08881528,3172.3,3171.0,4.21663881]
[1767802103631,1.08881528,3172.3,3169.7,3.15481143]
[1767802103632,3.15238635,3172.2,3171.4,1.06313914]
[1767802103935,0.826,3172.4,3171.4,1.06313914]
[1767802104737,0.001,3172.6,3171.4,1.06313914]
[1767802104938,0.001,3172.6,3171.6,1.06313914]
[1767802105233,3.15301385,3172.6,3171.6,1.06313914]
[1767802105532,0.001,3172.6,3171.6,1.06313914]
[1767802105749,1.08881528,3173.0,3171.5,0.81896551]
[1767802105750,1.08881528,3173.3,3172.1,1.06313914]
[1767802106038,3.15006771,3174.6,3172.3,1.06313914]
[1767802106039,3.15111539,3173.5,3172.3,1.06313914]
[1767802106222,4.23982191,3173.6,3172.5,1.06313914]
[1767802106455,7.39082854,3173.6,3172.5,1.06313914]
[1767802107251,7.39082854,3173.6,3172.4,0.18831391]
[1767802107252,1.08881528,3173.5,3172.4,0.18831391]
[1767802107464,1.08881528,3173.3,3171.8,0.82]
[1767802107658,7.3916011,3173.2,3171.9,4.21582365]
[1767802107851,7.3916011,3173.2,3172.0,1.88199712]
[1767802108161,1.08881528,3173.1,3172.0,1.06313914]
[1767802108574,6.30278582,3173.2,3172.0,1.06313914]
[1767802108864,1.08881528,3173.2,3172.0,1.06313914]
[1767802109536,4.23983108,3173.6,3172.0,1.06313914]
[1767802109760,1.08881528,3173.5,3172.2,1.06313914]
[1767802109967,1.08881528,3173.3,3172.3,1.24156249]
[1767802110371,1.08881528,3173.3,3172.0,3.15258166]
[1767802110675,1.08881528,3173.3,3172.1,0.82]
[1767802111861,1.08881528,3173.3,3172.1,3.97245066]
[1767802111862,6.30278582,3173.2,3172.1,3.97245066]
[1767802112770,6.30278582,3173.2,3172.1,5.11991738]
[1767802112963,6.30278582,3173.2,3172.1,1.96746672]
[1767802113140,0.73916011,3173.1,3172.1,2.16421339]
[1767802113336,0.73916011,3173.1,3171.1,1.14746672]
[1767802113337,1.08516574,3173.0,3171.1,1.14746672]
[1767802113648,1.08516574,3173.0,3171.6,1.14746672]
[1767802113862,6.30358042,3172.8,3171.6,1.14746672]
[1767802114163,6.30358042,3172.8,3171.2,0.82]
[1767802114164,1.08516574,3172.6,3171.3,4.30071692]
[1767802114346,1.08516574,3172.6,3171.5,1.14746672]
[1767802115065,1.08516574,3172.6,3171.3,0.82]
[1767802115866,1.08516574,3172.6,3171.1,1.14746672]
[1767802115867,7.38934224,3172.5,3171.2,3.1533114]
[1767802116049,1.08516574,3172.4,3171.2,3.1533114]
[1767802116378,1.82409996,3172.3,3171.3,3.58334638]
[1767802116667,1.82409996,3172.3,3171.3,0.43007781]
[1767802117269,1.08516574,3172.1,3171.1,1.14746672]
[1767802117472,1.08516574,3172.1,3170.8,3.15369161]
[1767802117473,1.08516574,3172.1,3170.8,1.14746672]
[1767802117653,1.08516574,3172.1,3170.8,4.30117505]
[1767802118059,1.08516574,3171.9,3170.8,1.14746672]
[1767802118366,1.85472801,3171.8,3171.5,0.002]
[1767802118564,1.08516574,3171.7,3170.6,0.82]
[1767802118971,1.08516574,3171.7,3171.1,0.002]
[1767802119268,1.08516574,3171.7,3170.6,0.82]
[1767802119470,1.08516574,3171.5,3170.6,1.33215001]
[1767802119837,1.08516574,3171.5,3170.6,4.48603686]
[1767802120376,3.15318156,3171.4,3170.6,1.33215001]
[1767802120673,4.23827668,3171.5,3170.6,1.33215001]
[1767802120972,7.39138762,3171.5,3170.6,0.82]
[1767802121184,1.08516574,3171.4,3170.1,1.14746672]
[1767802121740,1.08516574,3171.4,3170.0,0.82]
[1767802122443,12.61244376,3171.5,3169.9,0.002]
[1767802122444,1.08516574,3171.2,3169.9,0.002]
[1767802122758,12.61312392,3171.3,3169.9,0.002]
[1767802122759,1.08516574,3171.0,3169.9,0.002]
[1767802122956,1.08516574,3171.0,3169.5,3.97506586]
[1767802123273,1.08516574,3171.0,3169.5,0.82]
[1767802123459,1.08516574,3170.8,3169.5,1.33226988]
[1767802123961,1.08516574,3170.8,3169.5,0.51226988]
[1767802124160,1.08516574,3170.8,3169.1,0.82]
[1767802124365,1.08516574,3170.8,3169.1,3.97540235]
[1767802124546,1.08516574,3170.6,3169.1,3.97540235]
[1767802124867,1.08516574,3170.4,3169.1,3.97540235]
[1767802125205,1.08516574,3170.2,3169.1,1.53310385]
[1767802125393,0.826,3170.5,3169.2,1.14746672]
[1767802125678,1.08516574,3170.6,3169.2,1.14746672]
[1767802125679,0.826,3170.6,3169.2,1.14746672]
[1767802126046,1.08516574,3170.5,3169.2,1.14746672]
[1767802126470,3.15417612,3170.4,3169.3,7.45800848]
[1767802126672,3.15398319,3170.6,3169.5,1.14746672]
[1767802126874,6.30802669,3170.6,3169.5,1.14746672]
[1767802127070,1.08516574,3170.5,3169.1,5.12285676]
[1767802127387,1.08516574,3170.5,3169.3,1.14746672]
[1767802127946,3.15377822,3170.8,3169.3,1.14746672]
[1767802128165,3.15377822,3170.8,3169.5,1.14746672]
[1767802128680,3.15367876,3170.9,3169.7,1.14746672]
[1767802129180,1.08516574,3170.8,3169.7,1.96846672]
[1767802129381,1.50905019,3170.8,3169.7,1.96846672]
[1767802129556,1.08516574,3170.7,3169.7,1.96846672]
[1767802129761,1.08516574,3170.7,3169.7,0.821]
[1767802130172,1.08516574,3170.5,3168.6,14.502]
[1767802130365,1.08516574,3170.4,3169.3,3.15520787]
[1767802130760,3.15427562,3170.3,3169.3,3.15520787]
[1767802130956,3.15427562,3170.3,3170.0,0.002]
[1767802131156,3.15427562,3170.3,3169.3,7.45794547]
[1767802131361,3.15411061,3170.5,3169.6,0.002]
[1767802131555,1.08516574,3170.3,3169.6,0.002]
[1767802132057,3.15411061,3170.5,3169.6,0.002]
[1767802132784,3.15411061,3170.5,3169.6,3.15697223]
[1767802132972,3.97997784,3170.6,3169.7,1.14746672]
[1767802133169,3.15397784,3170.6,3169.7,1.89340937]
[1767802133370,6.30795568,3170.6,3169.7,1.89340937]
[1767802133977,3.15397784,3170.6,3169.7,1.89340937]
[1767802134760,6.30795568,3170.6,3169.7,1.89340937]
[1767802134998,6.30775538,3170.7,3169.7,1.14746672]
[1767802136177,7.39292112,3170.7,3169.7,1.14746672]
[1767802136387,1.08516574,3170.6,3169.6,0.002]
[1767802137187,0.42388445,3170.8,3169.6,1.14946672]
[1767802137487,3.15382131,3170.8,3169.6,1.14946672]
[1767802137704,7.39280836,3170.8,3169.6,1.14946672]
[1767802138489,3.15372683,3170.9,3169.6,1.14946672]
[1767802138692,3.15372683,3170.9,3169.8,1.14746672]
[1767802138693,4.23889257,3170.9,3169.8,1.14746672]
[1767802138868,3.15372683,3170.9,3169.9,1.34431339]
[1767802139073,6.30745366,3170.9,3169.9,1.34431339]
[1767802139276,3.15360715,3171.0,3169.9,4.49889985]
[1767802139573,6.3072143,3171.0,3169.9,4.49889985]
[1767802139772,6.3072143,3171.0,3170.0,0.44988999]
[1767802139975,3.9795062,3171.1,3170.1,1.14746672]
[1767802140170,1.08516574,3171.7,3170.1,1.14746672]
[1767802140392,0.16,3172.1,3170.3,1.14746672]
[1767802140393,8.21713118,3171.6,3170.3,1.14746672]
[1767802140591,1.08516574,3171.5,3169.6,1.15824517]
[1767802140889,1.1326781,3171.3,3169.6,1.15824517]
[1767802141392,1.45230966,3171.4,3169.6,1.15824517]
[1767802141393,1.1326781,3171.1,3169.6,4.31318834]
[1767802141592,0.826,3171.0,3169.7,1.15624517]
[1767802141797,1.1326781,3171.1,3169.7,1.15624517]
[1767802141960,1.1326781,3171.1,3169.9,1.15123013]
[1767802142396,3.15338042,3171.2,3170.0,1.15123013]
[1767802142993,1.14363893,3171.5,3170.0,1.15123013]
[1767802143180,1.14363893,3172.1,3170.2,1.15123013]
[1767802143381,1.14363893,3171.9,3170.2,1.15123013]
[1767802143574,1.14363893,3171.9,3170.4,1.15123013]
[1767802143775,1.14363893,3171.9,3170.6,1.15123013]
[1767802144009,0.001,3171.4,3170.6,1.15123013]
[1767802144994,0.001,3171.4,3170.5,0.821]
[1767802145194,0.001,3171.4,3170.5,1.97223013]
[1767802145403,0.001,3171.4,3170.6,0.19722301]
[1767802146485,0.001,3171.4,3170.6,3.35119355]
[1767802147531,0.001,3171.4,3170.7,1.15123013]
[1767802147759,3.15259899,3172.0,3171.1,1.15123013]
[1767802148011,7.44821289,3172.3,3171.1,1.15123013]
[1767802148321,1.14363893,3172.1,3171.1,1.15123013]
[1767802149338,3.15228698,3172.3,3171.1,1.15123013]
[1767802149490,4.29582654,3172.4,3171.2,6.30676084]
[1767802149817,3.15200223,3172.6,3171.3,1.15123013]
[1767802150004,3.15200223,3172.6,3171.4,2.21236727]
[1767802150205,3.15200223,3172.6,3171.6,1.15123013]
[1767802150419,3.15156403,3173.1,3171.6,1.15123013]
[1767802150420,4.29527293,3173.0,3171.6,1.15123013]
[1767802150785,3.151634,3173.0,3171.6,1.15123013]
[1767802151133,6.303268,3173.0,3171.8,1.15123013]
[1767802151511,6.30300408,3173.1,3171.9,4.30391464]
[1767802151942,1.14363893,3173.0,3171.9,4.30391464]
[1767802152815,3.15141071,3173.2,3172.1,1.15123013]
[1767802153741,6.3025872,3173.3,3172.2,4.30361648]
[1767802153944,7.12980981,3173.3,3172.2,1.97894839]
[1767802154943,1.14363893,3173.2,3172.0,0.821]
[1767802155110,1.14363893,3173.2,3172.0,5.12480996]
[1767802155310,1.14363893,3173.2,3172.1,4.3037053]
[1767802155643,1.14363893,3173.2,3172.2,1.15123013]
[1767802155811,3.97851621,3173.3,3172.3,3.15228698]
[1767802156013,7.12980981,3173.3,3172.3,1.89681936]
[1767802156332,7.12980981,3173.3,3172.3,0.74558923]
[1767802156333,1.14363893,3173.2,3172.3,0.74558923]
[1767802156534,1.14363893,3173.2,3172.0,1.15123013]
[1767802156739,1.14363893,3173.2,3172.0,0.821]
[1767802156940,1.14363893,3173.2,3171.9,3.97268351]
[1767802157241,1.14363893,3173.2,3172.0,3.15251309]
[1767802157624,1.14363893,3173.2,3171.9,0.82]
[1767802157625,1.14363893,3173.2,3171.9,3.97263014]
[1767802157821,1.14363893,3173.0,3171.9,4.16975315]
[1767802158033,3.15169088,3172.9,3172.0,3.1525264]
[1767802158224,3.15169088,3172.9,3171.9,4.16976501]
[1767802158422,7.44802069,3172.9,3171.9,1.01712301]
[1767802158732,0.74480207,3172.8,3171.9,4.16978438]
[1767802159044,4.29632981,3172.9,3171.9,4.16978438]
[1767802159250,1.14463893,3172.9,3172.0,1.15123013]
[1767802160246,3.15179021,3172.8,3172.0,4.30379578]
[1767802160451,3.15179021,3172.8,3172.0,1.15123013]
[1767802160842,1.14363893,3172.7,3171.4,0.002]
[1767802161048,1.14363893,3172.6,3171.4,0.002]
[1767802162153,1.14363893,3172.6,3171.4,3.15512876]
[1767802162333,3.15208825,3172.5,3171.6,3.15296032]
[1767802162729,6.3041765,3172.5,3171.5,1.15123013]
[1767802162934,7.12343935,3172.5,3171.5,1.15123013]
[1767802163245,1.14363893,3172.4,3171.4,0.002]
[1767802164223,1.14363893,3172.2,3171.0,0.002]
[1767802164427,0.826,3172.3,3171.0,0.002]
[1767802164428,1.14363893,3172.0,3171.0,0.002]
[1767802164630,1.14363893,3171.8,3170.3,1.15123013]
[1767802164933,1.31400692,3171.9,3170.3,1.15123013]
[1767802165242,3.15228698,3172.3,3170.3,1.15123013]
[1767802165455,1.14363893,3172.2,3170.3,1.15123013]
[1767802165759,1.14363893,3172.2,3170.4,1.15123013]
[1767802166056,1.64526285,3172.5,3170.4,1.15123013]
[1767802166057,3.15222944,3172.4,3170.4,1.15123013]
[1767802166355,7.44809781,3172.4,3170.6,1.15123013]
[1767802166524,1.14363893,3172.2,3170.8,1.15123013]
[1767802167137,1.14363893,3172.2,3170.8,1.97123013]
[1767802168658,1.14363893,3172.0,3170.9,3.15367876]
[1767802169329,1.14363893,3172.0,3170.9,4.30490889]
[1767802169530,1.88849997,3172.0,3170.9,5.23891838]
[1767802169730,1.88849997,3172.0,3171.0,1.15123013]
[1767802170149,1.14363893,3172.1,3170.9,0.93400949]
[1767802170350,1.14363893,3172.1,3170.6,3.15388222]
[1767802170552,1.14363893,3172.1,3170.8,3.15377765]
[1767802170752,1.14363893,3171.9,3170.7,3.15383257]
[1767802170957,1.14363893,3171.9,3171.1,0.002]
[1767802171164,0.74488092,3171.8,3171.1,0.002]
[1767802171458,1.88851985,3171.8,3171.1,0.002]
[1767802171660,1.14363893,3171.7,3171.1,0.002]
[1767802172034,1.14363893,3171.7,3170.8,0.002]
[1767802172565,1.14363893,3171.7,3169.9,3.15662637]
[1767802172566,1.14363893,3171.7,3170.0,3.15454479]
[1767802172760,1.13507746,3171.3,3169.9,6.31134728]
[1767802173430,1.13507746,3171.3,3169.9,0.002]
[1767802173764,1.13507746,3171.3,3169.9,1.19069686]
[1767802175857,6.30676084,3171.2,3170.0,3.15457413]
[1767802176162,1.13507746,3171.1,3169.9,4.34535268]
[1767802176367,1.13507746,3170.9,3169.9,5.17747395]
[1767802176563,1.13507746,3170.9,3169.9,0.83412127]
[1767802176766,1.13507746,3170.9,3169.9,0.002]
[1767802177838,3.15377822,3170.8,3169.9,0.002]
[1767802178164,3.15347639,3172.2,3169.9,1.19069686]
[1767802178165,6.30676084,3171.2,3169.9,1.19069686]
[1767802178367,3.15338042,3171.2,3169.9,1.19069686]
[1767802178562,3.15338042,3171.2,3170.1,1.18869686]
[1767802179065,3.15308213,3171.5,3170.1,1.18869686]
[1767802179567,4.28815959,3171.5,3170.1,1.18869686]
[1767802179968,4.28815959,3171.5,3170.2,7.49744708]
[1767802180170,7.44124172,3171.5,3170.2,7.49744708]
[1767802180371,7.44124172,3171.5,3170.3,0.74974471]
[1767802180672,1.13507746,3171.4,3170.3,0.74974471]
[1767802180974,1.13507746,3171.4,3170.2,3.15437511]
[1767802181766,1.13507746,3171.4,3170.2,6.30875022]
[1767802182076,1.13507746,3171.4,3170.3,1.18869686]
[1767802182875,1.13507746,3171.4,3170.2,6.30875022]
[1767802183379,1.13507746,3171.3,3170.2,6.30875022]
[1767802183538,1.13507746,3171.3,3170.3,0.94631936]
[1767802184574,1.13507746,3171.1,3170.3,4.10049581]
[1767802185143,1.13507746,3171.1,3170.3,4.10057175]
[1767802185343,0.001,3171.1,3170.3,7.25484737]
[1767802185558,0.001,3171.1,3170.3,8.44354423]
[1767802185763,0.001,3171.1,3170.4,0.92665442]
[1767802186691,0.001,3171.1,3170.5,4.3427735]
[1767802186891,9.5e-07,3171.1,3170.5,7.49685014]
[1767802187186,9.5e-07,3171.1,3170.5,4.3427735]
[1767802187388,9.5e-07,3171.1,3170.6,0.84235853]
[1767802187754,3.15298272,3171.6,3170.6,0.84235853]
[1767802187945,3.15198462,3171.6,3170.6,0.84235853]
[1767802188889,3.15198462,3171.6,3170.6,3.99624454]
[1767802189985,3.15198462,3171.6,3170.6,8.33891856]
[1767802190188,1.13507746,3171.7,3170.7,0.83389186]
[1767802190395,1.13507746,3171.7,3170.7,1.65489186]
[1767802191055,1.13507746,3171.7,3170.8,6.30755644]
[1767802191385,1.13507746,3171.7,3170.8,3.15377822]
[1767802191750,3.15281722,3171.8,3170.9,1.18869686]
[1767802191954,1.13507746,3172.0,3170.9,2.10382068]
[1767802192480,1.13507746,3172.0,3170.9,2.0859741]
[1767802193187,1.13407841,3171.9,3171.0,6.30715862]
[1767802193355,3.15339965,3172.2,3171.1,1.18869686]
[1767802193963,6.3057993,3172.2,3171.1,1.18869686]
[1767802194181,6.3057993,3172.2,3171.0,3.15357931]
[1767802194182,1.13507746,3172.1,3171.0,6.30715862]
[1767802194387,1.13507746,3172.1,3171.1,0.31535793]
[1767802194968,1.13507746,3171.9,3171.1,0.31535793]
[1767802195173,1.13507746,3171.9,3171.1,3.15344166]
[1767802195372,1.13507746,3171.9,3170.4,3.15415286]
[1767802195573,1.13507746,3171.9,3170.2,0.002]
[1767802195775,1.13507746,3171.9,3170.3,0.821]
[1767802195990,1.13507746,3171.7,3170.2,0.002]
[1767802196292,1.13507746,3171.7,3170.3,3.97519775]
[1767802196496,1.13507746,3171.5,3170.2,0.002]
[1767802196697,1.14188328,3171.8,3170.2,3.15435428]
[1767802196698,1.13507746,3171.3,3170.2,3.15435428]
[1767802196862,1.13507746,3171.1,3170.0,3.15451194]
[1767802197169,1.13507746,3170.9,3169.9,0.002]
[1767802199097,6.3070482,3171.1,3170.0,7.49784512]
[1767802199098,3.1535241,3171.1,3170.0,7.49784512]
[1767802200776,1.09408579,3171.0,3169.9,0.002]
[1767802201183,1.09408579,3170.8,3169.9,0.002]
[1767802201388,0.73291559,3171.0,3169.9,1.06566489]
[1767802201688,4.24706851,3171.6,3170.1,1.06366489]
[1767802201866,1.09408579,3171.6,3170.1,1.06366489]
[1767802202195,1.09408579,3171.6,3169.6,0.002]
[1767802202367,1.13854752,3171.2,3169.6,0.002]
[1767802202569,1.13854752,3171.0,3169.6,0.002]
[1767802202776,1.13854752,3170.8,3169.6,0.002]
[1767802202985,1.13854752,3170.6,3169.6,0.002]
[1767802203270,7.4467008,3170.5,3169.6,0.002]
[1767802203484,1.13854752,3170.4,3169.6,0.002]
[1767802203692,1.13854752,3170.3,3169.0,5.14553196]
[1767802203890,1.13854752,3170.3,3169.0,3.97656139]
[1767802204097,0.826,3170.4,3169.0,3.97656139]
[1767802204098,1.13854752,3170.1,3169.0,7.52978711]
[1767802204799,1.13854752,3170.1,3169.0,4.37421753]
[1767802205202,1.13854752,3169.9,3169.0,4.37421753]
[1767802205402,1.13854752,3169.9,3169.0,7.52978711]
[1767802205713,1.13854752,3169.9,3169.0,4.37421753]
[1767802206203,1.13854752,3169.9,3169.0,7.52978711]
[1767802206503,4.29288264,3170.3,3169.1,1.92194928]
[1767802206698,7.44721776,3170.3,3169.1,1.92194928]
[1767802206872,4.29288264,3170.3,3169.1,1.92194928]
[1767802207071,1.13854752,3170.3,3169.1,1.92194928]
[1767802207401,4.29284993,3170.3,3169.2,6.31074088]
[1767802207699,1.13854752,3170.3,3169.3,0.82326902]
[1767802208007,3.15333455,3171.3,3169.4,1.16897057]
[1767802208008,1.13854752,3171.1,3169.4,1.16897057]
[1767802208181,1.96454752,3171.0,3169.5,0.821]
[1767802208501,1.96454752,3171.0,3169.6,1.36796763]
[1767802208502,0.19645475,3170.9,3169.6,1.36796763]
[1767802208687,0.19645475,3170.9,3169.6,1.16897057]
[1767802209506,1.13854752,3170.7,3169.5,3.9760113]
[1767802210075,1.13854752,3170.7,3169.6,3.15491762]
[1767802210271,4.29232574,3170.8,3169.7,1.16897057]
[1767802210503,1.13854752,3170.8,3169.8,0.43238882]
[1767802211409,1.13854752,3170.7,3169.8,0.43238882]
[1767802211698,1.13854752,3170.7,3169.8,3.58713755]
[1767802212089,1.13854752,3170.7,3169.8,0.43238882]
[1767802212294,1.88316093,3170.7,3169.6,3.1549185]
[1767802212490,1.88316093,3170.7,3169.6,4.32388907]
[1767802212690,1.88316093,3170.7,3169.8,3.1547722]
[1767802213699,5.03704467,3170.7,3169.7,3.15485898]
[1767802213904,3.15360808,3171.0,3169.8,1.16897057]
[1767802215104,6.30721616,3171.0,3169.8,1.16897057]
[1767802215500,3.15360808,3171.0,3169.8,1.16897057]
[1767802215695,3.15360808,3171.0,3170.0,3.15457413]
[1767802215911,3.15360808,3171.0,3170.0,7.47811883]
[1767802216411,3.15360808,3171.0,3170.0,4.3235447]
[1767802216609,1.13854752,3170.9,3170.0,3.15457413]
[1767802216908,1.13854752,3170.9,3169.9,3.90250332]
[1767802217088,1.13854752,3170.9,3169.9,3.15463309]
[1767802218298,3.15377822,3170.8,3169.8,1.16897057]
[1767802219713,7.44610396,3170.8,3169.8,1.16897057]
[1767802220528,4.29232574,3170.8,3169.8,4.32366884]
[1767802220906,1.13854752,3170.7,3169.8,3.15469827]
[1767802221241,1.13954752,3170.5,3169.8,0.63116409]
[1767802222447,1.13854752,3170.4,3169.6,0.002]
[1767802223702,3.15516849,3170.5,3169.6,1.17097057]
[1767802223918,0.826,3170.4,3169.6,1.17097057]
[1767802224119,0.001,3170.5,3169.6,1.17097057]
[1767802224328,0.001,3170.5,3169.7,1.16897057]
[1767802224531,0.001,3170.5,3169.7,4.3237779]
[1767802224895,0.001,3170.5,3169.7,1.16897057]
[1767802226201,1.13954752,3170.5,3169.6,0.002]
[1767802226533,1.13854752,3170.3,3169.6,0.002]
[1767802226743,7.13475022,3170.2,3169.6,0.002]
[1767802226897,7.13475022,3170.2,3169.3,0.002]
[1767802226898,1.13854752,3170.1,3169.3,0.002]
[1767802228904,7.13475022,3170.2,3169.3,0.002]
[1767802228905,1.13854752,3169.9,3169.3,0.002]
[1767802231029,1.13854752,3169.7,3169.0,0.002]
[1767802231237,1.88335691,3169.6,3169.0,0.002]
[1767802231831,1.13854752,3169.5,3169.0,0.002]
[1767802232328,1.13854752,3169.5,3168.6,0.002]
[1767802232823,3.89979532,3169.6,3168.7,3.15582418]
[1767802233018,3.15498593,3169.6,3168.7,4.26304386]
[1767802233420,3.98089011,3169.7,3168.7,4.26304386]
[1767802233929,0.826,3170.0,3168.8,1.10721968]
[1767802234105,1.14043691,3169.9,3168.9,0.74189122]
[1767802234506,1.14043691,3169.9,3168.6,3.15793021]
[1767802235006,1.14043691,3169.7,3169.3,0.002]
[1767802235206,1.14043691,3169.7,3168.6,3.15793021]
[1767802235514,1.14043691,3169.7,3168.6,0.002]
[1767802237148,6.30994446,3169.6,3168.6,0.002]
[1767802237309,1.14043691,3169.4,3168.6,0.002]
[1767802238143,1.14043691,3169.4,3168.5,0.002]
[1767802238308,1.14043691,3169.4,3168.4,0.002]
[1767802239237,1.14043691,3169.2,3168.4,0.002]
[1767802239702,1.14043691,3169.0,3168.4,0.002]
[1767802240035,1.14043691,3169.0,3168.1,0.002]
[1767802240834,0.63105418,3169.2,3168.1,1.10921968]
[1767802241036,1.45705418,3169.2,3168.1,1.10921968]
[1767802241237,0.63105418,3169.2,3168.2,7.41995246]
[1767802241535,0.63105418,3169.2,3168.3,0.74219525]
[1767802241725,3.78643833,3169.2,3168.3,0.74219525]
[1767802242303,4.92687524,3169.2,3168.3,0.74219525]
[1767802242950,3.15509633,3169.5,3168.4,1.10721968]
[1767802243123,4.29560823,3169.4,3168.4,1.10721968]
[1767802243642,7.45077955,3169.4,3168.4,4.2633755]
[1767802244038,1.14043691,3169.3,3168.3,0.74219525]
[1767802244239,1.14043691,3169.3,3168.2,3.15632829]
[1767802245238,1.14043691,3169.3,3168.1,1.10921968]
[1767802245616,4.29579028,3169.3,3168.3,1.10721968]
[1767802246211,1.14043691,3169.2,3168.2,3.15635041]
[1767802247445,1.14043691,3169.2,3168.2,6.3127168]
[1767802247626,1.14043691,3169.2,3168.3,0.63147168]
[1767802247937,4.29587537,3169.2,3168.4,0.002]
[1767802248644,1.14043691,3169.2,3168.4,0.002]
[1767802249143,4.2958074,3169.2,3168.4,0.002]
[1767802249649,6.31074098,3169.2,3168.4,0.002]
[1767802249816,1.14043691,3169.1,3168.4,0.002]
[1767802250017,4.29592833,3169.1,3168.4,0.002]
[1767802250534,1.14043691,3169.0,3168.4,0.002]
[1767802251925,4.2960882,3169.0,3168.4,0.002]
[1767802252131,1.14043691,3169.0,3168.4,0.002]
[1767802252331,4.29602785,3169.0,3168.4,0.002]
[1767802252531,5.1869777,3169.0,3168.4,0.002]
[1767802252748,1.14043691,3168.9,3168.4,0.002]
[1767802255728,4.29611813,3168.9,3168.4,0.002]
[1767802255932,1.14043691,3168.9,3168.4,0.002]
[1767802256136,4.29610686,3168.9,3168.4,0.002]
[1767802256680,1.14043691,3168.8,3168.1,3.15837771]
[1767802257349,1.14043691,3168.8,3168.1,3.79007851]
[1767802259469,1.14043691,3168.8,3168.4,0.002]
[1767802259870,0.001,3168.6,3168.4,1.10921968]
[1767802260072,0.001,3168.6,3168.4,0.002]
[1767802262544,1.06900083,3169.7,3168.6,1.07914831]
[1767802262750,0.27544374,3169.6,3168.6,1.07914831]
[1767802262950,1.27034529,3169.6,3168.6,1.07914831]
[1767802263263,3.15507177,3169.5,3168.6,1.07914831]
[1767802263475,1.06900083,3169.4,3168.6,1.07914831]
[1767802263677,3.15552426,3170.1,3168.6,1.07914831]
[1767802263678,4.22357496,3170.0,3168.7,1.07914831]
[1767802263977,0.001,3170.1,3168.9,1.07914831]
[1767802263978,3.15552003,3170.1,3168.9,1.07914831]
[1767802264375,4.22452086,3170.1,3168.9,1.07914831]
[1767802264576,1.06900083,3170.0,3168.9,1.07914831]
[1767802264883,1.06900083,3170.0,3168.8,0.822]
[1767802265179,1.06900083,3170.0,3168.9,1.07914831]
[1767802265478,1.06900083,3170.0,3169.1,6.31094]
[1767802265684,0.001,3170.1,3169.2,1.07914831]
[1767802266849,0.001,3170.1,3169.1,6.31094]
[1767802266850,0.001,3170.1,3169.4,1.07914831]
[1767802267045,0.001,3170.1,3169.6,1.07914831]
[1767802267261,0.001,3170.1,3169.5,0.19011483]
[1767802267481,0.001,3170.1,3169.5,3.34517264]
[1767802267678,9.5e-07,3170.1,3169.6,1.07914831]
[1767802269084,9.5e-07,3170.1,3169.5,0.19011483]
[1767802269382,9.5e-07,3170.1,3169.6,0.41672191]
[1767802269981,9.5e-07,3170.1,3169.6,3.57165319]
[1767802270588,9.5e-07,3170.1,3169.6,0.41672191]
[1767802270759,9.5e-07,3170.1,3169.6,3.57168977]
[1767802271177,9.5e-07,3170.1,3169.7,1.07914831]